[Event "Titled Tuesday Blitz November 14 Early 2023"]
[White "Klukin, Kirill"]
[Black "Keleberda, Tymur"]
[WhiteFideId "24199273"]
[BlackFideId "14174294"]
[WhiteElo "2865"]
[BlackElo "2495"]
[Result "1-0"]
[Round "1"]
[TimeControl "180+1"]
[Date "2023.11.14"]
[WhiteClock "0:00:13"]
[BlackClock "0:00:03"]
[Board "56"]

1. d4 {[%clk 0:03:00]}  Nf6 {[%clk 0:02:58]} 2. Nf3 {[%clk 0:03:00]}  e6 {[%clk 0:02:58]} 3. e3 {[%clk 0:03:00]}  b6 {[%clk 0:02:52]} 4. Bd3 {[%clk 0:03:01]}  Bb7 {[%clk 0:02:52]} 5. O-O {[%clk 0:03:01]}  d5 {[%clk 0:02:51]} 6. b3 {[%clk 0:03:01]}  Nbd7 {[%clk 0:02:51]} 7. Bb2 {[%clk 0:03:02]}  c5 {[%clk 0:02:44]} 8. Nbd2 {[%clk 0:03:02]}  Qc7 {[%clk 0:02:43]} 9. Qe2 {[%clk 0:03:02]}  Be7 {[%clk 0:02:40]} 10. e4 {[%clk 0:02:46]}  dxe4 {[%clk 0:02:39]} 11. Nxe4 {[%clk 0:02:46]}  Nxe4 {[%clk 0:02:39]} 12. Bxe4 {[%clk 0:02:46]}  O-O {[%clk 0:02:37]} 13. Rad1 {[%clk 0:02:14]}  Bf6 {[%clk 0:02:24]} 14. c4 {[%clk 0:02:12]}  cxd4 {[%clk 0:01:34]} 15. Nxd4 {[%clk 0:02:02]}  Bxe4 {[%clk 0:01:33]} 16. Qxe4 {[%clk 0:02:03]}  Nc5 {[%clk 0:01:33]} 17. Qe2 {[%clk 0:02:00]}  a5 {[%clk 0:01:10]} 18. Nb5 {[%clk 0:01:54]}  Qe7 {[%clk 0:01:10]} 19. Bxf6 {[%clk 0:01:43]}  Qxf6 {[%clk 0:01:11]} 20. Rd6 {[%clk 0:01:43]}  Rab8 {[%clk 0:01:04]} 21. Rfd1 {[%clk 0:01:42]}  g6 {[%clk 0:00:54]} 22. g3 {[%clk 0:01:39]}  h5 {[%clk 0:00:49]} 23. h4 {[%clk 0:01:38]}  Rfc8 {[%clk 0:00:45]} 24. Qe3 {[%clk 0:01:01]}  Kg7 {[%clk 0:00:28]} 25. Nc3 {[%clk 0:00:58]}  Rb7 {[%clk 0:00:22]} 26. Nd5 {[%clk 0:00:53]}  Qb2 {[%clk 0:00:16]} 27. Nxb6 {[%clk 0:00:48]}  Rcc7 {[%clk 0:00:11]} 28. Qf4 {[%clk 0:00:27]}  Qxa2 {[%clk 0:00:09]} 29. Qd4+ {[%clk 0:00:24]}  Kh7 {[%clk 0:00:09]} 30. Rd8 {[%clk 0:00:22]}  f6 {[%clk 0:00:05]} 31. Qxf6 {[%clk 0:00:21]}  Rg7 {[%clk 0:00:05]} 32. Qf8 {[%clk 0:00:19]}  g5 {[%clk 0:00:05]} 33. hxg5 {[%clk 0:00:12]}  Kg6 {[%clk 0:00:04]} 34. Qf6+ {[%clk 0:00:12]}  Kh7 {[%clk 0:00:03]} 35. Qh6# {[%clk 0:00:13]} 1-0


[Site "https://www.chess.com"]

[Event "Titled Tuesday Blitz November 14 Early 2023"]
[White "Guliev, Logman"]
[Black "Madaminov, Mukhiddin"]
[WhiteFideId "13400061"]
[BlackFideId "14210703"]
[WhiteElo "2493"]
[BlackElo "2863"]
[Result "0-1"]
[Round "1"]
[TimeControl "180+1"]
[Date "2023.11.14"]
[WhiteClock "0:01:18"]
[BlackClock "0:02:06"]
[Board "57"]

1. e4 {[%clk 0:03:00]}  e5 {[%clk 0:03:00]} 2. Nf3 {[%clk 0:03:00]}  Nc6 {[%clk 0:03:01]} 3. Bb5 {[%clk 0:03:00]}  a6 {[%clk 0:03:01]} 4. Ba4 {[%clk 0:03:00]}  Nf6 {[%clk 0:03:02]} 5. O-O {[%clk 0:03:00]}  Nxe4 {[%clk 0:03:02]} 6. d4 {[%clk 0:02:59]}  b5 {[%clk 0:03:03]} 7. Bb3 {[%clk 0:03:00]}  d5 {[%clk 0:03:03]} 8. dxe5 {[%clk 0:03:00]}  Be6 {[%clk 0:03:04]} 9. Be3 {[%clk 0:03:00]}  Be7 {[%clk 0:03:01]} 10. c3 {[%clk 0:02:58]}  O-O {[%clk 0:03:00]} 11. Nbd2 {[%clk 0:02:57]}  Bg4 {[%clk 0:03:00]} 12. Nxe4 {[%clk 0:02:55]}  dxe4 {[%clk 0:03:01]} 13. Qd5 {[%clk 0:02:55]}  Qxd5 {[%clk 0:03:00]} 14. Bxd5 {[%clk 0:02:55]}  exf3 {[%clk 0:03:01]} 15. Bxc6 {[%clk 0:02:49]}  fxg2 {[%clk 0:03:02]} 16. Kxg2 {[%clk 0:02:48]}  Rab8 {[%clk 0:03:01]} 17. f3 {[%clk 0:02:45]}  Be6 {[%clk 0:03:00]} 18. Rfd1 {[%clk 0:02:34]}  f6 {[%clk 0:02:57]} 19. exf6 {[%clk 0:02:32]}  Rxf6 {[%clk 0:02:54]} 20. Be4 {[%clk 0:02:24]}  Bd6 {[%clk 0:02:39]} 21. Rd2 {[%clk 0:02:18]}  Bf5 {[%clk 0:02:35]} 22. Bd5+ {[%clk 0:02:07]}  Be6 {[%clk 0:02:35]} 23. Be4 {[%clk 0:02:06]}  Re8 {[%clk 0:02:33]} 24. a4 {[%clk 0:02:04]}  Bf5 {[%clk 0:02:26]} 25. Bd5+ {[%clk 0:02:02]}  Be6 {[%clk 0:02:21]} 26. Be4 {[%clk 0:02:01]}  Bf5 {[%clk 0:02:21]} 27. Bd5+ {[%clk 0:02:00]}  Kf8 {[%clk 0:02:22]} 28. Kf2 {[%clk 0:01:49]}  Bd7 {[%clk 0:02:08]} 29. axb5 {[%clk 0:01:47]}  axb5 {[%clk 0:02:08]} 30. Kg2 {[%clk 0:01:18]}  Rxe3 {[%clk 0:02:06]} 0-1


[Site "https://www.chess.com"]

[Event "Titled Tuesday Blitz November 14 Early 2023"]
[White "Boruchovsky, Avital"]
[Black "Zomorrodian, Eilia"]
[WhiteFideId "2800055"]
[BlackFideId "12551805"]
[WhiteElo "2857"]
[BlackElo "2489"]
[Result "1-0"]
[Round "1"]
[TimeControl "180+1"]
[Date "2023.11.14"]
[WhiteClock "0:01:00"]
[BlackClock "0:00:04"]
[Board "58"]

1. c4 {[%clk 0:03:00]}  Nf6 {[%clk 0:02:59]} 2. Nc3 {[%clk 0:03:00]}  g6 {[%clk 0:03:00]} 3. e4 {[%clk 0:03:00]}  d6 {[%clk 0:03:01]} 4. d4 {[%clk 0:03:01]}  Bg7 {[%clk 0:03:01]} 5. Be3 {[%clk 0:03:01]}  O-O {[%clk 0:03:02]} 6. Be2 {[%clk 0:03:01]}  c5 {[%clk 0:03:01]} 7. Nf3 {[%clk 0:03:01]}  Nc6 {[%clk 0:03:01]} 8. d5 {[%clk 0:02:57]}  Na5 {[%clk 0:03:01]} 9. O-O {[%clk 0:02:57]}  Bg4 {[%clk 0:03:01]} 10. Nd2 {[%clk 0:02:56]}  Bxe2 {[%clk 0:03:02]} 11. Qxe2 {[%clk 0:02:57]}  a6 {[%clk 0:02:59]} 12. Rab1 {[%clk 0:02:48]}  e6 {[%clk 0:02:51]} 13. a3 {[%clk 0:02:45]}  exd5 {[%clk 0:02:36]} 14. exd5 {[%clk 0:02:46]}  Nd7 {[%clk 0:02:25]} 15. Nce4 {[%clk 0:02:39]}  b5 {[%clk 0:01:53]} 16. cxb5 {[%clk 0:02:20]}  axb5 {[%clk 0:01:52]} 17. Nxd6 {[%clk 0:02:21]}  b4 {[%clk 0:01:28]} 18. N2e4 {[%clk 0:02:15]}  Nb3 {[%clk 0:00:51]} 19. axb4 {[%clk 0:02:10]}  cxb4 {[%clk 0:00:48]} 20. Qc4 {[%clk 0:02:02]}  Na5 {[%clk 0:00:42]} 21. Qxb4 {[%clk 0:02:02]}  Rb8 {[%clk 0:00:28]} 22. Qa4 {[%clk 0:01:58]}  f5 {[%clk 0:00:21]} 23. Ng5 {[%clk 0:01:20]}  f4 {[%clk 0:00:21]} 24. Ne6 {[%clk 0:01:17]}  Qe7 {[%clk 0:00:21]} 25. Bxf4 {[%clk 0:01:14]}  Rxf4 {[%clk 0:00:12]} 26. Qxf4 {[%clk 0:01:08]}  Be5 {[%clk 0:00:13]} 27. Qa4 {[%clk 0:01:05]}  Qxd6 {[%clk 0:00:06]} 28. f4 {[%clk 0:01:03]}  Qb6+ {[%clk 0:00:04]} 29. Kh1 {[%clk 0:01:02]}  Bf6 {[%clk 0:00:04]} 30. Qxd7 {[%clk 0:01:01]}  Rb7 {[%clk 0:00:04]} 31. Qe8# {[%clk 0:01:00]} 1-0


[Site "https://www.chess.com"]

[Event "Titled Tuesday Blitz November 14 Early 2023"]
[White "Urbina Perez, Juan Antonio"]
[Black "BardArtem"]
[WhiteFideId "2217368"]
[WhiteElo "2486"]
[BlackElo "2851"]
[Result "0-1"]
[Round "1"]
[TimeControl "180+1"]
[Date "2023.11.14"]
[WhiteClock "0:00:35"]
[BlackClock "0:00:07"]
[Board "59"]

1. d4 {[%clk 0:02:58]}  d5 {[%clk 0:02:58]} 2. c4 {[%clk 0:02:57]}  e6 {[%clk 0:02:45]} 3. Nf3 {[%clk 0:02:58]}  Nf6 {[%clk 0:02:45]} 4. g3 {[%clk 0:02:58]}  dxc4 {[%clk 0:02:45]} 5. Bg2 {[%clk 0:02:57]}  Nbd7 {[%clk 0:02:45]} 6. O-O {[%clk 0:02:54]}  c6 {[%clk 0:02:45]} 7. Qc2 {[%clk 0:02:52]}  b5 {[%clk 0:02:30]} 8. Nbd2 {[%clk 0:02:52]}  Bb7 {[%clk 0:02:10]} 9. b3 {[%clk 0:02:51]}  cxb3 {[%clk 0:02:10]} 10. Nxb3 {[%clk 0:02:52]}  Be7 {[%clk 0:02:10]} 11. Bg5 {[%clk 0:02:52]}  O-O {[%clk 0:02:09]} 12. Ne5 {[%clk 0:02:49]}  Nxe5 {[%clk 0:02:05]} 13. dxe5 {[%clk 0:02:50]}  Nd7 {[%clk 0:02:05]} 14. Bxe7 {[%clk 0:02:46]}  Qxe7 {[%clk 0:02:05]} 15. Rac1 {[%clk 0:02:45]}  Nxe5 {[%clk 0:02:02]} 16. Qc5 {[%clk 0:02:33]}  Qxc5 {[%clk 0:01:55]} 17. Nxc5 {[%clk 0:02:34]}  Rab8 {[%clk 0:01:33]} 18. f4 {[%clk 0:02:32]}  Nc4 {[%clk 0:01:33]} 19. Nd7 {[%clk 0:02:31]}  Rbd8 {[%clk 0:01:33]} 20. Nxf8 {[%clk 0:02:30]}  Kxf8 {[%clk 0:01:34]} 21. Rc3 {[%clk 0:02:25]}  Rd2 {[%clk 0:01:27]} 22. Rb1 {[%clk 0:02:23]}  Ba8 {[%clk 0:01:08]} 23. Rxc4 {[%clk 0:02:19]}  bxc4 {[%clk 0:01:08]} 24. Rb8+ {[%clk 0:02:17]}  Ke7 {[%clk 0:01:09]} 25. Rxa8 {[%clk 0:02:17]}  c3 {[%clk 0:01:10]} 26. Rxa7+ {[%clk 0:02:18]}  Kf6 {[%clk 0:01:03]} 27. Be4 {[%clk 0:02:13]}  Rxe2 {[%clk 0:00:54]} 28. Bd3 {[%clk 0:02:13]}  Rd2 {[%clk 0:00:45]} 29. Be4 {[%clk 0:02:12]}  c2 {[%clk 0:00:46]} 30. Bxc2 {[%clk 0:02:06]}  Rxc2 {[%clk 0:00:47]} 31. a4 {[%clk 0:02:04]}  Ra2 {[%clk 0:00:42]} 32. Rc7 {[%clk 0:02:03]}  Rxa4 {[%clk 0:00:35]} 33. Rxc6 {[%clk 0:02:03]}  Kf5 {[%clk 0:00:34]} 34. Rc7 {[%clk 0:02:03]}  Kg4 {[%clk 0:00:33]} 35. Rc5 {[%clk 0:01:32]}  g6 {[%clk 0:00:25]} 36. Rc7 {[%clk 0:01:06]}  f5 {[%clk 0:00:15]} 37. Rb7 {[%clk 0:00:59]}  h5 {[%clk 0:00:11]} 38. Rb6 {[%clk 0:00:50]}  Re4 {[%clk 0:00:04]} 39. Kg2 {[%clk 0:00:43]}  Re2+ {[%clk 0:00:04]} 40. Kg1 {[%clk 0:00:42]}  Kf3 {[%clk 0:00:04]} 41. Rb3+ {[%clk 0:00:42]}  Re3 {[%clk 0:00:05]} 42. Rb1 {[%clk 0:00:40]}  h4 {[%clk 0:00:05]} 43. Rf1+ {[%clk 0:00:40]}  Kg4 {[%clk 0:00:06]} 44. Kg2 {[%clk 0:00:37]}  hxg3 {[%clk 0:00:04]} 45. hxg3 {[%clk 0:00:36]}  Rxg3+ {[%clk 0:00:05]} 46. Kh2 {[%clk 0:00:37]}  Rf3 {[%clk 0:00:05]} 47. Rg1+ {[%clk 0:00:37]}  Kxf4 {[%clk 0:00:06]} 48. Rxg6 {[%clk 0:00:37]}  e5 {[%clk 0:00:07]} 49. Kg2 {[%clk 0:00:36]}  Rb3 {[%clk 0:00:07]} 50. Rb6 {[%clk 0:00:35]}  Rxb6 {[%clk 0:00:07]} 0-1


[Site "https://www.chess.com"]

[Event "Titled Tuesday Blitz November 14 Early 2023"]
[White "mind1mover"]
[Black "topce"]
[WhiteElo "2851"]
[BlackElo "2484"]
[Result "0-1"]
[Round "1"]
[TimeControl "180+1"]
[Date "2023.11.14"]
[WhiteClock "0:00:10"]
[BlackClock "0:00:56"]
[Board "60"]

1. Nf3 {[%clk 0:03:00]}  c5 {[%clk 0:03:00]} 2. b3 {[%clk 0:02:59]}  Nc6 {[%clk 0:03:00]} 3. Bb2 {[%clk 0:03:00]}  Nf6 {[%clk 0:03:00]} 4. e3 {[%clk 0:03:00]}  g6 {[%clk 0:03:00]} 5. Bb5 {[%clk 0:03:00]}  Bg7 {[%clk 0:03:00]} 6. Bxc6 {[%clk 0:03:01]}  bxc6 {[%clk 0:02:59]} 7. O-O {[%clk 0:03:01]}  d6 {[%clk 0:02:59]} 8. d3 {[%clk 0:02:59]}  O-O {[%clk 0:02:59]} 9. h3 {[%clk 0:02:58]}  e5 {[%clk 0:02:54]} 10. a3 {[%clk 0:02:55]}  a5 {[%clk 0:02:53]} 11. Nfd2 {[%clk 0:02:50]}  Nh5 {[%clk 0:02:42]} 12. a4 {[%clk 0:02:32]}  f5 {[%clk 0:02:41]} 13. Na3 {[%clk 0:02:28]}  f4 {[%clk 0:02:40]} 14. Nac4 {[%clk 0:02:23]}  Ra7 {[%clk 0:02:35]} 15. Bc3 {[%clk 0:02:14]}  Raf7 {[%clk 0:02:27]} 16. Bxa5 {[%clk 0:02:01]}  Qe7 {[%clk 0:02:11]} 17. Nf3 {[%clk 0:01:46]}  Be6 {[%clk 0:01:52]} 18. e4 {[%clk 0:01:40]}  h6 {[%clk 0:01:35]} 19. b4 {[%clk 0:01:26]}  cxb4 {[%clk 0:01:29]} 20. Bxb4 {[%clk 0:01:27]}  c5 {[%clk 0:01:30]} 21. Bc3 {[%clk 0:01:19]}  Nf6 {[%clk 0:01:28]} 22. Ncxe5 {[%clk 0:01:04]}  dxe5 {[%clk 0:01:28]} 23. Nxe5 {[%clk 0:01:05]}  Nh5 {[%clk 0:01:16]} 24. Nxg6 {[%clk 0:00:59]}  Qg5 {[%clk 0:01:15]} 25. Nxf8 {[%clk 0:00:45]}  Bxh3 {[%clk 0:01:04]} 26. g3 {[%clk 0:00:46]}  Bxc3 {[%clk 0:01:01]} 27. Qc1 {[%clk 0:00:10]}  Nxg3 {[%clk 0:00:56]} 0-1


[Site "https://www.chess.com"]

[Event "Titled Tuesday Blitz November 14 Early 2023"]
[White "Pourkashiyan, Atousa"]
[Black "Timofeev, Artyom"]
[WhiteFideId "12502014"]
[BlackFideId "4140419"]
[WhiteElo "2481"]
[BlackElo "2848"]
[Result "1-0"]
[Round "1"]
[TimeControl "180+1"]
[Date "2023.11.14"]
[WhiteClock "0:00:04"]
[BlackClock "0:00:23"]
[Board "61"]

1. e4 {[%clk 0:02:58]}  c6 {[%clk 0:02:59]} 2. d4 {[%clk 0:02:56]}  d5 {[%clk 0:02:58]} 3. exd5 {[%clk 0:02:50]}  cxd5 {[%clk 0:02:58]} 4. Bd3 {[%clk 0:02:50]}  Nc6 {[%clk 0:02:57]} 5. c3 {[%clk 0:02:45]}  Nf6 {[%clk 0:02:55]} 6. Ne2 {[%clk 0:02:40]}  g6 {[%clk 0:02:51]} 7. O-O {[%clk 0:02:33]}  Bg7 {[%clk 0:02:51]} 8. Bg5 {[%clk 0:02:23]}  O-O {[%clk 0:02:49]} 9. Nd2 {[%clk 0:02:22]}  h6 {[%clk 0:02:49]} 10. Bh4 {[%clk 0:02:22]}  Bf5 {[%clk 0:02:31]} 11. Bxf5 {[%clk 0:02:17]}  gxf5 {[%clk 0:02:31]} 12. Nf4 {[%clk 0:02:14]}  Qd6 {[%clk 0:02:24]} 13. Nh5 {[%clk 0:02:09]}  Nxh5 {[%clk 0:02:18]} 14. Qxh5 {[%clk 0:02:09]}  Qg6 {[%clk 0:02:16]} 15. Qf3 {[%clk 0:02:07]}  e6 {[%clk 0:02:15]} 16. Bg3 {[%clk 0:02:02]}  Kh7 {[%clk 0:02:13]} 17. Qf4 {[%clk 0:02:01]}  Bf6 {[%clk 0:02:10]} 18. Nf3 {[%clk 0:02:01]}  Rg8 {[%clk 0:02:07]} 19. Qc7 {[%clk 0:01:58]}  Rg7 {[%clk 0:02:05]} 20. Qxb7 {[%clk 0:01:55]}  Rag8 {[%clk 0:02:01]} 21. Qxc6 {[%clk 0:01:53]}  f4 {[%clk 0:02:02]} 22. Rae1 {[%clk 0:01:43]}  fxg3 {[%clk 0:02:00]} 23. fxg3 {[%clk 0:01:40]}  h5 {[%clk 0:02:00]} 24. Rf2 {[%clk 0:01:28]}  Qg4 {[%clk 0:01:52]} 25. Qc7 {[%clk 0:01:17]}  h4 {[%clk 0:01:47]} 26. Nxh4 {[%clk 0:00:55]}  Bxh4 {[%clk 0:01:47]} 27. gxh4 {[%clk 0:00:56]}  Qxh4 {[%clk 0:01:47]} 28. Re3 {[%clk 0:00:51]}  f5 {[%clk 0:01:09]} 29. Qe5 {[%clk 0:00:46]}  f4 {[%clk 0:01:08]} 30. Ref3 {[%clk 0:00:42]}  Rg4 {[%clk 0:01:04]} 31. Qxe6 {[%clk 0:00:37]}  R8g5 {[%clk 0:00:56]} 32. Qe7+ {[%clk 0:00:33]}  Kh6 {[%clk 0:00:55]} 33. Qf6+ {[%clk 0:00:29]}  Kh7 {[%clk 0:00:55]} 34. Qe7+ {[%clk 0:00:20]}  Kh6 {[%clk 0:00:54]} 35. Re2 {[%clk 0:00:17]}  Qh5 {[%clk 0:00:47]} 36. Re6+ {[%clk 0:00:14]}  Rg6 {[%clk 0:00:47]} 37. Qf8+ {[%clk 0:00:14]}  Kh7 {[%clk 0:00:46]} 38. Re7+ {[%clk 0:00:13]}  Rg7 {[%clk 0:00:47]} 39. Rxg7+ {[%clk 0:00:13]}  Rxg7 {[%clk 0:00:47]} 40. Qxf4 {[%clk 0:00:13]}  Qg6 {[%clk 0:00:46]} 41. Qf5 {[%clk 0:00:12]}  Qxf5 {[%clk 0:00:43]} 42. Rxf5 {[%clk 0:00:13]}  Rb7 {[%clk 0:00:44]} 43. b4 {[%clk 0:00:13]}  Rc7 {[%clk 0:00:44]} 44. Rf3 {[%clk 0:00:13]}  Kg6 {[%clk 0:00:44]} 45. Kf2 {[%clk 0:00:14]}  a5 {[%clk 0:00:44]} 46. a3 {[%clk 0:00:13]}  a4 {[%clk 0:00:44]} 47. Rg3+ {[%clk 0:00:11]}  Kf5 {[%clk 0:00:44]} 48. Rf3+ {[%clk 0:00:12]}  Ke4 {[%clk 0:00:45]} 49. Re3+ {[%clk 0:00:12]}  Kf4 {[%clk 0:00:45]} 50. g3+ {[%clk 0:00:13]}  Kg4 {[%clk 0:00:45]} 51. Kg2 {[%clk 0:00:12]}  Kf5 {[%clk 0:00:45]} 52. Kf3 {[%clk 0:00:12]}  Kf6 {[%clk 0:00:43]} 53. h4 {[%clk 0:00:11]}  Kg6 {[%clk 0:00:41]} 54. g4 {[%clk 0:00:12]}  Rf7+ {[%clk 0:00:41]} 55. Kg3 {[%clk 0:00:12]}  Rf1 {[%clk 0:00:41]} 56. h5+ {[%clk 0:00:11]}  Kg5 {[%clk 0:00:38]} 57. Re5+ {[%clk 0:00:11]}  Kh6 {[%clk 0:00:39]} 58. Rxd5 {[%clk 0:00:11]}  Ra1 {[%clk 0:00:39]} 59. Rd6+ {[%clk 0:00:09]}  Kh7 {[%clk 0:00:38]} 60. g5 {[%clk 0:00:08]}  Rxa3 {[%clk 0:00:38]} 61. Kf4 {[%clk 0:00:06]}  Rxc3 {[%clk 0:00:38]} 62. Rd7+ {[%clk 0:00:06]}  Kg8 {[%clk 0:00:38]} 63. Ra7 {[%clk 0:00:07]}  a3 {[%clk 0:00:38]} 64. Kf5 {[%clk 0:00:07]}  Rb3 {[%clk 0:00:30]} 65. d5 {[%clk 0:00:06]}  Rxb4 {[%clk 0:00:30]} 66. Rxa3 {[%clk 0:00:06]}  Rb6 {[%clk 0:00:30]} 67. Ra8+ {[%clk 0:00:06]}  Kg7 {[%clk 0:00:30]} 68. Ra7+ {[%clk 0:00:07]}  Kg8 {[%clk 0:00:31]} 69. g6 {[%clk 0:00:07]}  Rd6 {[%clk 0:00:31]} 70. Kg5 {[%clk 0:00:07]}  Rxd5+ {[%clk 0:00:32]} 71. Kh6 {[%clk 0:00:08]}  Rd8 {[%clk 0:00:32]} 72. Rg7+ {[%clk 0:00:07]}  Kh8 {[%clk 0:00:32]} 73. Rf7 {[%clk 0:00:07]}  Kg8 {[%clk 0:00:33]} 74. Rf5 {[%clk 0:00:07]}  Rd1 {[%clk 0:00:31]} 75. Ra5 {[%clk 0:00:07]}  Rd8 {[%clk 0:00:30]} 76. Kg5 {[%clk 0:00:06]}  Rc8 {[%clk 0:00:29]} 77. h6 {[%clk 0:00:06]}  Rd8 {[%clk 0:00:29]} 78. Re5 {[%clk 0:00:06]}  Rb8 {[%clk 0:00:29]} 79. Kf6 {[%clk 0:00:06]}  Rb6+ {[%clk 0:00:29]} 80. Re6 {[%clk 0:00:06]}  Rb8 {[%clk 0:00:30]} 81. h7+ {[%clk 0:00:06]}  Kh8 {[%clk 0:00:30]} 82. Kg5 {[%clk 0:00:05]}  Rb5+ {[%clk 0:00:30]} 83. Kh6 {[%clk 0:00:04]}  Rh5+ {[%clk 0:00:25]} 84. Kxh5 {[%clk 0:00:04]}  Kg7 {[%clk 0:00:25]} 85. Re7+ {[%clk 0:00:04]}  Kf6 {[%clk 0:00:25]} 86. Re8 {[%clk 0:00:04]}  Kf5 {[%clk 0:00:23]} 87. h8=Q {[%clk 0:00:04]} 1-0


[Site "https://www.chess.com"]

[Event "Titled Tuesday Blitz November 14 Early 2023"]
[White "Yanchenko, Roman"]
[Black "Garagulya, Konstantin"]
[WhiteFideId "4137329"]
[BlackFideId "4128931"]
[WhiteElo "2848"]
[BlackElo "2481"]
[Result "1/2-1/2"]
[Round "1"]
[TimeControl "180+1"]
[Date "2023.11.14"]
[WhiteClock "0:00:04"]
[BlackClock "0:00:12"]
[Board "62"]

1. d4 {[%clk 0:02:57]}  Nf6 {[%clk 0:02:59]} 2. Nf3 {[%clk 0:02:56]}  e6 {[%clk 0:02:59]} 3. Bf4 {[%clk 0:02:55]}  c5 {[%clk 0:02:59]} 4. e3 {[%clk 0:02:56]}  Qb6 {[%clk 0:02:58]} 5. Nc3 {[%clk 0:02:54]}  a6 {[%clk 0:02:58]} 6. Rb1 {[%clk 0:02:47]}  d5 {[%clk 0:02:56]} 7. Be2 {[%clk 0:02:45]}  Nc6 {[%clk 0:02:50]} 8. O-O {[%clk 0:02:44]}  Qd8 {[%clk 0:02:48]} 9. h3 {[%clk 0:02:37]}  Bd6 {[%clk 0:02:47]} 10. dxc5 {[%clk 0:02:30]}  Bxc5 {[%clk 0:02:46]} 11. Na4 {[%clk 0:02:30]}  Be7 {[%clk 0:02:34]} 12. b3 {[%clk 0:02:08]}  b5 {[%clk 0:02:34]} 13. Nb2 {[%clk 0:02:08]}  Ne4 {[%clk 0:02:23]} 14. Ra1 {[%clk 0:02:00]}  b4 {[%clk 0:02:17]} 15. Nd4 {[%clk 0:01:52]}  Bb7 {[%clk 0:02:17]} 16. Nxc6 {[%clk 0:01:44]}  Bxc6 {[%clk 0:02:18]} 17. Bf3 {[%clk 0:01:43]}  Nc3 {[%clk 0:02:13]} 18. Qd2 {[%clk 0:01:37]}  O-O {[%clk 0:02:09]} 19. a3 {[%clk 0:01:26]}  a5 {[%clk 0:02:01]} 20. Nd3 {[%clk 0:01:25]}  Bb5 {[%clk 0:01:55]} 21. axb4 {[%clk 0:01:24]}  axb4 {[%clk 0:01:54]} 22. Be5 {[%clk 0:01:18]}  Qb6 {[%clk 0:01:44]} 23. Rfe1 {[%clk 0:01:10]}  Rxa1 {[%clk 0:01:05]} 24. Rxa1 {[%clk 0:01:11]}  Rc8 {[%clk 0:01:05]} 25. Nxb4 {[%clk 0:00:55]}  Bxb4 {[%clk 0:01:04]} 26. Bxc3 {[%clk 0:00:55]}  Be7 {[%clk 0:00:37]} 27. Bd4 {[%clk 0:00:43]}  Qc7 {[%clk 0:00:37]} 28. Ra7 {[%clk 0:00:42]}  Qd8 {[%clk 0:00:34]} 29. Be2 {[%clk 0:00:37]}  Bxe2 {[%clk 0:00:33]} 30. Qxe2 {[%clk 0:00:38]}  Bc5 {[%clk 0:00:28]} 31. Bxc5 {[%clk 0:00:32]}  Rxc5 {[%clk 0:00:29]} 32. Qa6 {[%clk 0:00:17]}  Rc8 {[%clk 0:00:29]} 33. c4 {[%clk 0:00:16]}  dxc4 {[%clk 0:00:29]} 34. bxc4 {[%clk 0:00:17]}  h5 {[%clk 0:00:28]} 35. Qb7 {[%clk 0:00:16]}  Qf8 {[%clk 0:00:27]} 36. Qe4 {[%clk 0:00:16]}  Qc5 {[%clk 0:00:25]} 37. Ra8 {[%clk 0:00:16]}  Rxa8 {[%clk 0:00:21]} 38. Qxa8+ {[%clk 0:00:17]}  Kh7 {[%clk 0:00:22]} 39. Qe4+ {[%clk 0:00:17]}  g6 {[%clk 0:00:22]} 40. h4 {[%clk 0:00:17]}  Kg8 {[%clk 0:00:20]} 41. g3 {[%clk 0:00:18]}  Qb4 {[%clk 0:00:20]} 42. Qd4 {[%clk 0:00:18]}  Qe1+ {[%clk 0:00:19]} 43. Kg2 {[%clk 0:00:18]}  Qb4 {[%clk 0:00:19]} 44. c5 {[%clk 0:00:18]}  Qb5 {[%clk 0:00:20]} 45. Qd6 {[%clk 0:00:17]}  Qb1 {[%clk 0:00:17]} 46. Qd8+ {[%clk 0:00:15]}  Kg7 {[%clk 0:00:16]} 47. Qd4+ {[%clk 0:00:15]}  Kg8 {[%clk 0:00:16]} 48. c6 {[%clk 0:00:15]}  Qc2 {[%clk 0:00:16]} 49. Qd8+ {[%clk 0:00:15]}  Kg7 {[%clk 0:00:15]} 50. c7 {[%clk 0:00:15]}  Qe4+ {[%clk 0:00:14]} 51. Kg1 {[%clk 0:00:15]}  Qb1+ {[%clk 0:00:14]} 52. Kh2 {[%clk 0:00:16]}  Qc2 {[%clk 0:00:13]} 53. Kg2 {[%clk 0:00:05]}  Qe4+ {[%clk 0:00:12]} 54. Kf1 {[%clk 0:00:05]}  Qb1+ {[%clk 0:00:10]} 55. Ke2 {[%clk 0:00:06]}  Qc2+ {[%clk 0:00:11]} 56. Kf3 {[%clk 0:00:04]}  Qf5+ {[%clk 0:00:11]} 57. Kg2 {[%clk 0:00:04]}  Qe4+ {[%clk 0:00:12]} 1/2-1/2


[Site "https://www.chess.com"]